bitfinex-derivatives/quotes_ETHF0:USTF0_20230902
["timestamp","ask_amount","ask_price","bid_price","bid_amount"]
[1693677687757,2.86716352,1633.8,1633.7,5.99785683]
[1693677687956,6.36638151,1633.8,1633.7,5.99785683]
[1693677688762,3.17329411,1633.8,1633.7,5.99785683]
[1693677688961,7.16465336,1633.8,1633.7,5.99785683]
[1693677690267,3.17329411,1633.8,1633.7,5.99785683]
[1693677691066,3.17329411,1633.8,1633.7,7.30826283]
[1693677691959,7.16465336,1633.8,1633.7,7.30826283]
[1693677692361,7.16465336,1633.8,1633.7,5.99785683]
[1693677692562,7.16465336,1633.8,1633.7,7.30826283]
[1693677692868,13.28777036,1633.8,1633.7,7.30826283]
[1693677693068,7.16465336,1633.8,1633.7,7.30826283]
[1693677693374,10.42059576,1633.8,1633.7,7.30826283]
[1693677693563,2.69787058,1633.8,1633.7,7.30826283]
[1693677693866,3.49485721,1633.8,1633.7,7.30826283]
[1693677694069,0.30613059,1633.8,1633.7,7.30826283]
[1693677694461,3.49485721,1633.9,1633.7,7.30826283]
[1693677694662,0.30613059,1633.8,1633.7,1.79826283]
[1693677694866,3.49485721,1633.8,1633.7,7.30826283]
[1693677696064,6.73197543,1633.9,1633.7,7.30826283]
[1693677696271,6.73197543,1633.9,1633.8,5.5712]
[1693677697170,6.73197543,1633.9,1633.8,5.51]
[1693677700771,1.59487543,1633.9,1633.8,5.51]
[1693677700974,4.46203895,1633.9,1633.8,5.51]
[1693677703168,17.66163648,1633.8,1633.1,0.89711556]
[1693677703370,7.10660223,1633.5,1633.2,5.51]
[1693677703682,4.46376575,1633.4,1633.2,5.51]
[1693677704064,6.85866909,1633.4,1633.2,5.51]
[1693677704874,4.46376575,1633.4,1633.2,5.51]
[1693677705971,4.46376575,1633.4,1633.2,7.77993648]
[1693677706773,1.59660223,1633.4,1633.2,7.77993648]
[1693677706973,12.01160557,1633.5,1633.2,7.77993648]
[1693677707277,6.50160557,1633.5,1633.3,5.51]
[1693677707772,6.50160557,1633.5,1633.4,2.3833]
[1693677707971,9.36876909,1633.5,1633.4,2.3833]
[1693677708466,6.97386575,1633.5,1633.4,2.3833]
[1693677708676,4.10670223,1633.5,1633.4,2.3833]
[1693677708871,6.97386575,1633.5,1633.4,2.3833]
[1693677711381,8.87667326,1633.5,1633.4,2.3833]
[1693677712581,8.87667326,1633.5,1633.3,5.51]
[1693677712775,2.38947173,1633.4,1633.3,8.0259]
[1693677714480,2.69568611,1633.4,1633.3,8.0259]
[1693677714677,0.30621438,1633.4,1633.3,8.0259]
[1693677714877,5.81621438,1633.4,1633.3,2.5159]
[1693677715081,9.00941884,1633.4,1633.3,2.5159]
[1693677716180,9.00941884,1633.4,1633.1,8.0062]
[1693677716383,1.59242888,1633.2,1633.1,10.6387]
[1693677718184,5.37826352,1633.3,1633.1,10.6387]
[1693677721988,10.88826352,1633.3,1633.1,10.6387]
[1693677722887,10.51457232,1633.3,1633.1,10.6387]
[1693677723885,8.37716352,1633.3,1633.1,10.6387]
[1693677724088,5.51,1633.3,1633.1,10.6387]
[1693677724385,5.51,1633.3,1633.2,2.26993648]
[1693677724590,5.51,1633.3,1633.2,2.38246991]
[1693677725689,5.51,1633.3,1633.2,2.44366991]
[1693677726391,5.51,1633.3,1633.2,2.33113648]
[1693677726587,3.98107221,1633.4,1633.3,0.0612]
[1693677726787,6.84823573,1633.4,1633.3,0.0612]
[1693677726988,6.84823573,1633.4,1633.3,2.4758]
[1693677727493,5.25580685,1633.4,1633.3,2.4758]
[1693677729693,11.0720262,1633.4,1633.1,8.0062]
[1693677729896,1.59191739,1633.3,1633.2,2.5717]
[1693677731897,3.98056072,1633.3,1633.2,2.5717]
[1693677733593,3.94117104,1633.3,1633.2,2.5717]
[1693677735596,3.93274667,1633.3,1633.2,2.5717]
[1693677736000,4.73932583,1633.3,1633.2,1.65303358]
[1693677736500,0.74796658,1633.3,1633.2,1.65303358]
[1693677737193,4.73932583,1633.3,1633.2,1.65303358]
[1693677737397,10.86384106,1633.3,1633.2,0.22917062]
[1693677737599,4.73932583,1633.3,1633.2,0.22917062]
[1693677738699,4.29757994,1633.3,1633.2,0.22917062]
[1693677738893,4.29757994,1633.3,1633.2,5.80037062]
[1693677739089,3.49130478,1633.3,1633.2,5.80037062]
[1693677739598,3.49130478,1633.3,1633.2,0.29037062]
[1693677740193,6.3584683,1633.3,1633.2,0.29037062]
[1693677740701,4.45997651,1633.3,1633.2,0.29037062]
[1693677743397,4.45997651,1633.3,1633.2,0.78971526]
[1693677744409,1.59281299,1633.3,1633.2,0.78971526]
[1693677745612,4.45997651,1633.3,1633.2,0.78971526]
[1693677747507,6.84919599,1633.3,1633.2,0.78971526]
[1693677748518,11.687044,1633.3,1633.2,0.78971526]
[1693677748708,9.29782452,1633.3,1633.2,0.78971526]
[1693677751109,9.29782452,1633.3,1633.2,0.72851526]
[1693677752506,13.29269264,1633.3,1633.2,0.72851526]
[1693677753621,10.42552912,1633.3,1633.2,0.72851526]
[1693677753815,10.42552912,1633.3,1633.2,0.78971526]
[1693677754814,13.29269264,1633.3,1633.2,0.78971526]
[1693677755719,1.59813369,1633.3,1633.2,0.78971526]
[1693677756218,4.46529721,1633.3,1633.2,0.78971526]
[1693677757507,2.86716352,1633.3,1633.2,0.78971526]
[1693677759811,4.46529721,1633.3,1633.2,0.78971526]
[1693677763527,4.46529721,1633.3,1633.2,0.72851526]
[1693677763719,7.16825315,1633.3,1633.2,0.72851526]
[1693677765628,13.29268107,1633.3,1633.2,0.72851526]
[1693677767029,10.42551755,1633.3,1633.2,0.72851526]
[1693677767235,13.29268107,1633.3,1633.2,0.72851526]
[1693677770034,7.16825315,1633.3,1633.2,0.72851526]
[1693677770230,3.17338503,1633.3,1633.2,0.72851526]
[1693677770632,7.16825315,1633.3,1633.2,0.72851526]
[1693677770833,2.86716352,1633.3,1633.2,0.72851526]
[1693677773025,11.98310115,1633.4,1633.2,0.72851526]
[1693677773230,2.86716352,1633.3,1633.2,0.72851526]
[1693677775134,11.98310115,1633.4,1633.2,0.72851526]
[1693677775540,14.85026467,1633.4,1633.2,0.72851526]
[1693677777337,12.45272398,1633.4,1633.2,0.72851526]
[1693677778737,14.05108444,1633.4,1633.2,0.72851526]
[1693677778942,2.39754069,1633.3,1633.2,0.72851526]
[1693677781847,2.39754069,1633.3,1633.2,6.23851526]
[1693677782247,2.39754069,1633.5,1633.3,7.84113648]
[1693677782441,0.24574937,1633.5,1633.4,5.51]
[1693677782642,15.14220327,1633.7,1633.4,12.30997212]
[1693677782849,3.19672092,1633.7,1633.5,5.51]
[1693677783047,3.50288516,1633.7,1633.6,2.26993648]
[1693677784252,0.30616424,1633.7,1633.6,2.26993648]
[1693677784552,3.19672092,1633.8,1633.6,7.77993648]
[1693677784751,3.50287028,1633.8,1633.7,5.51]
[1693677784952,0.30614936,1633.8,1633.7,5.51]
[1693677785141,3.19672092,1633.9,1633.7,5.51]
[1693677785348,3.50286071,1633.9,1633.7,5.51]
[1693677785651,3.50286071,1633.9,1633.7,8.1362]
[1693677785949,3.19672092,1633.8,1633.7,8.1362]
[1693677786153,3.50286071,1633.8,1633.7,8.1362]
[1693677793056,1.67008313,1633.9,1633.8,5.5712]
[1693677793257,0.41848381,1634.0,1633.9,0.0612]
[1693677793454,13.795,1634.1,1633.9,5.5712]
[1693677793657,8.95156812,1634.2,1634.0,7.77993648]
[1693677793862,4.9567,1634.2,1634.0,2.26993648]
[1693677794056,4.9567,1634.2,1634.1,5.51]
[1693677796262,7.82386352,1634.2,1634.1,5.51]
[1693677796460,7.82386352,1634.2,1634.0,5.51]
[1693677801162,10.40624358,1634.1,1634.0,3.06109304]
[1693677801361,10.40624358,1634.1,1634.0,5.51]
[1693677801967,10.40624358,1634.1,1633.9,8.157]
[1693677802161,0.30611336,1634.0,1633.9,8.157]
[1693677802666,10.40625264,1634.1,1633.9,8.157]
[1693677802861,0.30611336,1634.0,1633.9,8.157]
[1693677803061,10.40625469,1634.1,1633.9,8.157]
[1693677804266,2.86716352,1634.0,1633.9,8.157]
[1693677804466,3.17327688,1634.0,1633.9,8.157]
[1693677805063,0.30611336,1634.0,1633.9,8.157]
[1693677805272,10.40625754,1634.1,1633.9,8.157]
[1693677805469,0.30611336,1634.0,1633.9,8.157]
[1693677805674,10.40625896,1634.1,1633.9,8.157]
[1693677805879,0.30611336,1634.0,1633.9,8.157]
[1693677806180,10.40626112,1634.1,1633.9,8.650572]
[1693677806479,13.27342464,1634.1,1633.9,8.650572]
[1693677806678,0.30611336,1634.0,1633.9,8.650572]
[1693677808073,3.05974953,1634.1,1634.0,2.33113648]
[1693677808382,13.795,1634.5,1634.1,0.0612]
[1693677808571,6.12101001,1634.4,1634.2,7.77993648]
[1693677808773,13.795,1634.5,1634.2,7.77993648]
[1693677809070,2.3821,1634.6,1634.2,10.28433648]
[1693677809267,7.8921,1634.6,1634.2,10.28433648]
[1693677810576,2.3821,1634.6,1634.4,5.51]
[1693677810777,5.24926352,1634.6,1634.4,5.51]
[1693677816090,6.1211315,1634.5,1634.4,3.36760398]
[1693677816990,6.1211315,1634.5,1634.4,5.63754046]
[1693677817187,6.1211315,1634.5,1634.4,5.69874046]
[1693677817381,2.3946,1634.7,1634.5,0.0612]
[1693677817585,6.12072594,1634.6,1634.5,2.33113648]
[1693677817888,6.12072594,1634.6,1634.5,7.84113648]
[1693677819589,8.98788946,1634.6,1634.5,7.84113648]
[1693677819789,6.12072594,1634.6,1634.5,7.84113648]
[1693677824197,16.88803398,1634.6,1634.5,5.08685376]
[1693677824998,14.02087046,1634.6,1634.5,5.08685376]
[1693677826201,11.75093398,1634.6,1634.5,5.08685376]
[1693677827798,11.68973398,1634.6,1634.5,5.08685376]
[1693677828194,11.99576452,1634.6,1634.5,5.08685376]
[1693677828996,21.17734,1634.6,1634.5,5.08685376]
[1693677829201,11.99640935,1634.6,1634.5,5.14805376]
[1693677829501,11.69037833,1634.6,1634.5,5.14805376]
[1693677829900,11.99640935,1634.6,1634.5,5.14805376]
[1693677831198,6.42665145,1634.6,1634.5,5.14805376]
[1693677831804,10.40591152,1634.6,1634.5,5.14805376]
[1693677833005,13.27307504,1634.6,1634.5,5.14805376]
[1693677833907,3.4901147,1634.6,1634.5,5.14805376]
[1693677834305,3.18408368,1634.6,1634.5,5.14805376]
[1693677837204,3.4901147,1634.6,1634.5,5.14805376]
[1693677837408,3.18408368,1634.6,1634.5,5.14805376]
[1693677838301,3.97926007,1634.6,1634.5,5.14805376]
[1693677841204,6.84642359,1634.6,1634.5,3.61801466]
[1693677841405,13.27256919,1634.6,1634.5,3.61801466]
[1693677842106,13.27617584,1634.6,1634.5,3.61801466]
[1693677845706,13.33727584,1634.6,1634.5,3.55681466]
[1693677845908,0.0611,1634.5,1634.4,6.0076805]
[1693677846114,14.26732124,1634.5,1634.4,0.4976805]
[1693677846316,11.33376023,1634.5,1634.2,6.00818517]
[1693677846513,0.0611,1634.3,1634.2,6.00818517]
[1693677846909,2.33103648,1634.3,1634.2,6.00818517]
[1693677851713,2.33103648,1634.3,1634.2,0.49818517]
[1693677851919,2.33103648,1634.3,1634.0,5.51]
[1693677851920,10.23111052,1634.3,1634.0,5.51]
[1693677852115,0.0611,1634.1,1634.0,5.51]
[1693677852314,2.33103648,1634.1,1634.0,5.51]
[1693677853319,5.82384013,1634.1,1634.0,5.51]
[1693677856323,5.02869407,1634.1,1634.0,5.51]
[1693677856624,4.72260061,1634.1,1634.0,5.51]
[1693677861427,2.33103648,1634.1,1634.0,5.51]
[1693677862021,2.33103648,1634.1,1633.9,2.33113648]
[1693677862022,0.0611,1634.0,1633.9,2.33113648]
[1693677862224,0.0611,1634.0,1633.9,7.84113648]
[1693677863229,15.3912,1634.3,1633.9,7.84113648]
[1693677863230,0.0612,1634.3,1633.9,7.84113648]
[1693677863529,0.0612,1634.3,1634.2,5.51]
[1693677863724,0.0612,1634.3,1634.2,7.77993648]
[1693677866035,0.0612,1634.3,1634.2,10.23953648]
[1693677871737,2.92836352,1634.3,1634.2,7.9696]
[1693677872624,2.92836352,1634.3,1634.2,5.51]
[1693677876238,2.92836352,1634.3,1634.2,6.00906944]
[1693677876439,6.42094335,1634.3,1634.2,5.09078114]
[1693677876734,6.42094335,1634.3,1634.2,4.5917117]
[1693677876935,6.42079719,1634.3,1634.2,4.5917117]
[1693677877336,6.42079824,1634.3,1634.2,4.5917117]
[1693677878238,7.21738162,1634.3,1634.2,4.5917117]
[1693677880330,13.33935336,1634.3,1634.2,4.5917117]
[1693677881832,13.33935336,1634.3,1634.2,3.06116689]
[1693677883535,5.31917344,1634.3,1634.2,3.06116689]
[1693677888334,10.82917344,1634.3,1634.0,5.99158487]
[1693677888539,0.0612,1634.1,1634.0,0.48158487]
[1693677888738,0.0612,1634.0,1633.9,7.9981]
[1693677889042,5.1983,1634.0,1633.9,7.9981]
[1693677889239,5.1371,1634.0,1633.9,7.9981]
[1693677889433,5.1983,1634.0,1633.9,7.9981]
[1693677889944,5.1371,1634.0,1633.9,7.9981]
[1693677890334,5.1983,1634.0,1633.9,7.9981]
[1693677891044,5.1371,1634.0,1633.9,7.9981]
[1693677891646,8.69216842,1634.0,1633.9,7.9981]
[1693677897346,8.63096842,1634.0,1633.9,7.9981]
[1693677898050,5.50442185,1634.0,1633.9,7.9981]
[1693677898247,7.89825304,1634.0,1633.9,7.9981]
[1693677898449,5.1983,1634.0,1633.9,7.9981]
[1693677898750,5.1371,1634.0,1633.9,7.9981]
[1693677899252,5.1983,1634.0,1633.9,7.9981]
[1693677899652,5.1371,1634.0,1633.9,7.9981]
[1693677900153,5.1983,1634.0,1633.9,7.9981]
[1693677901046,5.1371,1634.0,1633.9,7.9981]
[1693677901247,2.86716352,1634.0,1633.9,7.9981]
[1693677901452,0.0612,1634.1,1633.9,7.9981]
[1693677901843,0.0612,1634.1,1634.0,5.51]
[1693677902044,2.86716352,1634.1,1634.0,5.51]
[1693677902246,0.0612,1634.1,1634.0,7.77993648]
[1693677902654,2.92836352,1634.1,1634.0,7.77993648]
[1693677904957,0.0612,1634.1,1634.0,7.77993648]
[1693677905156,1.59575092,1634.2,1634.1,0.0612]
[1693677905360,15.8110563,1634.3,1634.1,5.5712]
[1693677905551,15.8110563,1634.3,1634.2,2.26993648]
[1693677905752,18.67821982,1634.3,1634.2,2.26993648]
[1693677906551,17.38857199,1634.3,1634.2,2.26993648]
[1693677906957,14.52140847,1634.3,1634.2,2.26993648]
[1693677907158,2.69993428,1634.3,1634.2,2.26993648]
[1693677907856,2.69993428,1634.3,1634.2,7.77993648]
[1693677908252,2.39383119,1634.3,1634.2,7.77993648]
[1693677908455,3.99010653,1634.3,1634.2,7.77993648]
[1693677908760,1.59627534,1634.3,1634.2,7.77993648]
[1693677913663,3.4938182,1634.3,1634.2,7.77993648]
[1693677914666,6.36098172,1634.3,1634.2,7.77993648]
[1693677916666,3.4938182,1634.3,1634.2,7.77993648]
[1693677916866,6.36098172,1634.3,1634.2,7.77993648]
[1693677920372,5.56802946,1634.3,1634.2,7.77993648]
[1693677920773,2.70086594,1634.3,1634.2,7.77993648]
[1693677921369,5.56802946,1634.3,1634.2,7.77993648]
[1693677921566,5.56789925,1634.3,1634.2,7.77993648]
[1693677921971,5.26183014,1634.3,1634.2,7.77993648]
[1693677922169,2.86716352,1634.3,1634.2,7.77993648]
[1693677922375,23.88142032,1634.4,1634.2,7.77993648]
[1693677922674,23.88142032,1634.4,1634.3,5.51]
[1693677922870,26.74858384,1634.4,1634.3,5.51]
[1693677923074,36.93421517,1634.4,1634.3,8.0665]
[1693677923772,34.06705165,1634.4,1634.3,8.0665]
[1693677924178,22.285,1634.4,1634.3,8.0665]
[1693677924379,1.65762032,1634.5,1634.3,8.0665]
[1693677925178,1.65762032,1634.5,1634.4,2.26993648]
[1693677925384,0.0612,1634.5,1634.4,2.26993648]
[1693677927084,6.68162032,1634.6,1634.4,2.26993648]
[1693677927281,1.59642032,1634.6,1634.5,0.0612]
[1693677927482,1.59642032,1634.6,1634.5,5.5712]
[1693677927681,1.59642032,1634.6,1634.5,7.956]
[1693677928789,3.49891372,1634.6,1634.5,7.956]
[1693677929984,0.30604489,1634.6,1634.5,7.956]
[1693677930483,2.69910229,1634.6,1634.5,7.956]
[1693677931883,2.3930574,1634.6,1634.5,7.956]
[1693677932089,11.78200075,1634.7,1634.5,7.956]
[1693677932289,3.98808322,1634.6,1634.5,7.956]
[1693677932890,3.98808322,1634.6,1634.5,7.96173164]
[1693677934687,1.59523329,1634.6,1634.5,7.96173164]
[1693677935487,3.98808322,1634.6,1634.5,7.96173164]
[1693677935786,1.59523329,1634.7,1634.5,7.96173164]
[1693677935991,1.59523329,1634.7,1634.6,2.26993648]
[1693677936790,1.59523329,1634.7,1634.6,2.27566041]
[1693677937289,3.98808322,1634.7,1634.6,2.27566041]
[1693677937492,1.59523329,1634.7,1634.6,2.27566041]
[1693677940382,3.98808322,1634.7,1634.6,2.27566041]
[1693677941292,2.39284993,1634.7,1634.6,2.27566041]
[1693677941894,2.39284993,1634.7,1634.6,7.78566041]
[1693677942090,1.59448168,1634.7,1634.6,7.78566041]
[1693677942895,3.98733161,1634.7,1634.6,7.78566041]
[1693677943893,10.41437459,1634.7,1634.6,6.86761879]
[1693677944587,10.41428542,1634.7,1634.6,6.86761879]
[1693677944791,4.29409709,1634.7,1634.6,6.86761879]
[1693677945397,10.41427816,1634.7,1634.6,6.86761879]
[1693677948195,13.28144168,1634.7,1634.6,0.00572393]
[1693677948401,21.03551091,1634.7,1634.6,0.00080758]
[1693677948698,21.03551091,1634.7,1634.5,0.0612]
[1693677948899,12.68331565,1634.6,1634.5,0.0612]
[1693677950195,12.68331565,1634.6,1634.4,5.51]
[1693677950401,3.49673504,1634.5,1634.4,5.51]
[1693677950602,6.36389856,1634.5,1634.4,5.51]
[1693677950902,2.86716352,1634.5,1634.4,5.51555026]
[1693677953205,2.92826352,1634.5,1634.4,0.00555026]
[1693677953505,6.91675939,1634.5,1634.4,0.00555026]
[1693677953707,6.91675939,1634.5,1634.3,6.00312653]
[1693677954404,2.26993648,1634.4,1634.3,6.00312653]
[1693677954802,2.26993648,1634.4,1634.3,6.00868451]
[1693677959011,5.46065765,1634.4,1634.3,6.00868451]
[1693677959211,5.76671205,1634.4,1634.3,6.00868451]
[1693677963011,5.77007168,1634.4,1634.3,6.00868451]
[1693677964214,2.70186949,1634.4,1634.3,6.00868451]
[1693677965419,0.30605205,1634.4,1634.3,6.00868451]
[1693677965614,3.5001352,1634.4,1634.3,6.00868451]
[1693677966118,4.52620366,1634.5,1634.3,6.00868451]
[1693677966316,2.92826352,1634.5,1634.3,6.00868451]
[1693677966518,4.52630317,1634.5,1634.3,6.00868451]
[1693677972017,10.03630317,1634.5,1634.3,0.49868451]
[1693677973815,2.33103648,1634.4,1634.3,0.49868451]
[1693677974119,4.72809595,1634.4,1634.3,0.49868451]
[1693677980127,6.32613283,1634.4,1634.3,0.49868451]
[1693677981120,5.83317614,1634.4,1634.3,0.49868451]
[1693677981820,5.83317614,1634.4,1634.3,0.49312653]
[1693677982024,0.0611,1634.3,1634.2,5.1655]
[1693677982222,2.45793877,1634.3,1634.2,5.1655]
[1693677982422,5.63116265,1634.3,1634.2,5.1655]
[1693677982821,5.63116265,1634.3,1634.2,5.17106569]
[1693677985130,6.43040318,1634.3,1634.2,5.17106569]
[1693677986427,6.43040318,1634.3,1634.2,0.00556569]
[1693677986729,14.86625912,1634.3,1633.9,0.0612]
[1693677986926,2.4567931,1634.0,1633.7,5.0147]
[1693677987231,4.46428774,1633.9,1633.8,5.5712]
[1693677987435,6.73422422,1633.9,1633.8,5.5712]
[1693677987826,6.73422422,1633.9,1633.8,5.57636892]
[1693677988029,6.79532422,1633.9,1633.8,5.51516892]
[1693677988226,13.1038931,1633.9,1633.8,0.00516892]
[1693677988936,0.0611,1633.8,1633.7,5.0147]
[1693677989839,0.0611,1633.8,1633.7,5.01966633]
[1693677996645,5.5711,1633.8,1633.7,0.00496633]
[1693677996846,5.93107344,1633.8,1633.7,0.00496633]
[1693677997854,0.0611,1633.7,1633.6,1.73139862]
[1693677998149,5.1982,1633.7,1633.6,1.73139862]
[1693677998745,5.1982,1633.7,1633.6,1.73637267]
[1693678000945,5.1982,1633.7,1633.6,1.73139862]
[1693678001347,5.1982,1633.7,1633.6,0.49329862]
[1693678001651,5.1982,1633.7,1633.5,5.51]
[1693678001856,10.7082,1633.7,1633.5,5.51]
[1693678002547,10.7082,1633.7,1633.5,6.00643278]
[1693678003549,0.0611,1633.6,1633.5,6.00643278]
[1693678004355,1.53105877,1633.4,1633.3,5.66049688]
[1693678004551,10.70706262,1633.4,1633.3,0.0612]
[1693678004754,10.7071664,1633.4,1633.3,0.0612]
[1693678004954,9.11600335,1633.4,1633.3,0.0612]
[1693678005458,10.70673376,1633.4,1633.3,0.0612]
[1693678005845,10.70641623,1633.4,1633.3,0.0612]
[1693678007748,9.11600335,1633.4,1633.3,0.0612]
[1693678008253,0.0611,1633.3,1633.2,0.48143066]
[1693678008449,1.65098555,1633.3,1633.1,10.567]
[1693678008654,5.1371,1633.2,1633.1,10.567]
[1693678010854,5.1982,1633.2,1633.1,10.567]
[1693678011055,5.1982,1633.2,1633.1,11.04704606]
[1693678011257,5.1371,1633.2,1633.1,11.04704606]
[1693678011748,5.1371,1633.2,1633.1,11.16440659]
[1693678011947,5.1982,1633.2,1633.1,11.16440659]
[1693678012347,5.1371,1633.2,1633.1,11.16440659]
[1693678013154,5.1371,1633.2,1633.1,11.16440658]
[1693678013357,5.1982,1633.2,1633.1,11.16440658]
[1693678013656,5.1371,1633.2,1633.1,11.05186969]
[1693678014351,5.1982,1633.2,1633.1,11.05186969]
[1693678018061,5.1982,1633.2,1633.1,8.51136969]
[1693678018453,6.78808555,1633.2,1633.1,8.51136969]
[1693678022854,9.17483013,1633.2,1633.1,8.51136969]
[1693678023854,9.17472432,1633.2,1633.1,8.51136969]
[1693678024065,6.90478784,1633.2,1633.1,8.51136969]
[1693678024768,5.3150081,1633.2,1633.1,8.51136969]
[1693678026467,2.92826352,1633.2,1633.1,8.51136969]
[1693678028764,4.51855851,1633.2,1633.1,8.51136969]
[1693678033373,7.21240826,1633.2,1633.1,8.51136969]
[1693678034772,7.21240826,1633.2,1633.1,8.50654606]
[1693678035776,3.23450063,1633.2,1633.1,8.50654606]
[1693678036169,6.42262084,1633.2,1633.1,8.50654606]
[1693678036370,8.74450063,1633.2,1633.1,0.48004606]
[1693678036567,1.02129211,1633.0,1632.8,2.5086]
[1693678036771,6.05486446,1632.9,1632.8,8.0186]
[1693678036972,6.36110157,1632.9,1632.8,8.13116539]
[1693678037172,8.63103805,1632.9,1632.8,8.13116539]
[1693678037473,8.63103805,1632.9,1632.8,8.0186]
[1693678037876,8.63103805,1632.9,1632.8,8.02307673]
[1693678038074,8.69223805,1632.9,1632.8,8.02307673]
[1693678040781,2.69622977,1632.9,1632.8,8.08427673]
[1693678041080,2.38999266,1632.9,1632.8,8.08427673]
[1693678041277,2.38999266,1632.9,1632.8,10.55967673]
[1693678041474,1.02129211,1633.0,1632.9,0.0612]
[1693678042082,3.88845563,1633.0,1632.9,0.0612]
[1693678043876,3.88845563,1633.0,1632.9,0.06566901]
[1693678048078,0.96009211,1633.0,1632.9,0.06566901]
[1693678048284,0.96009211,1633.0,1632.9,6.92756387]
[1693678048587,2.55376469,1633.0,1632.9,6.92756387]
[1693678049087,5.42092821,1633.0,1632.9,6.92756387]
[1693678050187,2.55376469,1633.0,1632.9,6.92756387]
[1693678050388,3.35060098,1633.0,1632.9,6.92756387]
[1693678050781,6.2177645,1633.0,1632.9,6.92756387]
[1693678050987,3.35060098,1633.0,1632.9,6.92756387]
[1693678052987,4.94540357,1633.0,1632.9,6.92756387]
[1693678053586,7.81256709,1633.0,1632.9,6.92756387]
[1693678053788,5.42205822,1633.0,1632.9,6.92756387]
[1693678053990,2.5548947,1633.0,1632.9,6.92756387]
[1693678055890,1.59480259,1633.0,1632.9,6.92756387]
[1693678056189,4.04651146,1633.1,1632.9,6.92756387]
[1693678056584,0.0612,1633.1,1632.9,6.92756387]
[1693678057189,5.5712,1633.2,1632.9,6.92756387]
[1693678057590,5.5712,1633.2,1633.0,2.5984]
[1693678057799,5.5712,1633.2,1633.1,1.35189486]
[1693678058391,8.43836352,1633.2,1633.1,1.35189486]
[1693678058896,8.43836352,1633.2,1633.1,1.3561741]
[1693678059501,0.0612,1633.2,1633.1,6.8661741]
[1693678060087,2.4351,1633.3,1633.1,6.8661741]
[1693678060293,1.65600259,1633.3,1633.1,6.8661741]
[1693678060592,0.0612,1633.3,1633.1,6.8661741]
[1693678060898,0.0612,1633.3,1633.1,6.86189486]
[1693678061102,24.37095069,1633.5,1633.3,0.0612]
[1693678061293,22.285,1633.5,1633.4,1.35189486]
[1693678061490,25.15216352,1633.5,1633.4,1.35189486]
[1693678061788,25.15216352,1633.5,1633.4,1.35615093]
[1693678061992,25.15216352,1633.5,1633.4,6.86615093]
[1693678062199,22.285,1633.5,1633.4,6.86615093]
[1693678062595,25.15216352,1633.5,1633.4,6.86615093]
[1693678062791,22.285,1633.5,1633.4,6.86615093]
[1693678064501,25.15216352,1633.5,1633.4,6.86615093]
[1693678064898,22.285,1633.5,1633.4,6.86615093]
[1693678065499,25.15216352,1633.5,1633.4,6.86615093]
[1693678065890,22.285,1633.5,1633.4,6.86615093]
[1693678066099,4.04651146,1633.7,1633.4,6.86615093]
[1693678066298,2.86716352,1633.6,1633.4,6.86615093]
[1693678069603,2.92836352,1633.6,1633.4,6.86615093]
[1693678069906,0.0612,1633.5,1633.4,0.00425607]
[1693678070294,2.6658,1633.5,1633.4,0.00425607]
[1693678070495,4.93573648,1633.5,1633.4,0.00425607]
[1693678071801,0.0612,1633.4,1633.3,5.51]
[1693678072004,4.52311026,1633.4,1633.3,5.51]
[1693678072404,4.52311026,1633.4,1633.3,5.5712]
[1693678072604,4.52311026,1633.4,1633.3,5.51]
[1693678072904,4.52311026,1633.4,1633.3,5.51411363]
[1693678074010,4.52311026,1633.4,1633.3,6.0026595]
[1693678077311,1.65594674,1633.4,1633.3,6.0026595]
[1693678078909,0.0612,1633.4,1633.3,6.0026595]
[1693678080611,5.1055,1633.5,1633.3,6.0638595]
[1693678080809,5.1055,1633.5,1633.3,10.8935595]
[1693678081114,5.1055,1633.5,1633.4,1.35189486]
[1693678081608,7.97266352,1633.5,1633.4,1.35189486]
[1693678081810,7.97266352,1633.5,1633.3,10.8935595]
[1693678082112,0.0612,1633.4,1633.3,8.4659595]
[1693678082313,0.0612,1633.4,1633.3,6.0638595]
[1693678083015,2.33113648,1633.4,1633.3,0.4926595]
[1693678088812,2.33113648,1633.4,1633.3,2.9840595]
[1693678089019,0.0612,1633.4,1633.3,8.5552595]
[1693678094227,1.65602093,1633.4,1633.3,8.5552595]
[1693678094927,4.52318445,1633.4,1633.3,8.5552595]
[1693678095830,1.65602093,1633.4,1633.3,8.5552595]
[1693678096328,4.52318445,1633.4,1633.3,8.5552595]
[1693678097423,1.65602093,1633.4,1633.3,8.5552595]
[1693678098926,4.52318445,1633.4,1633.3,8.5552595]
[1693678099127,1.59482093,1633.4,1633.3,8.5552595]
[1693678101233,5.1055,1633.5,1633.3,8.5552595]
[1693678101628,5.1055,1633.5,1633.3,11.0468595]
[1693678101830,7.97266352,1633.5,1633.3,11.0468595]
[1693678103035,10.2426,1633.5,1633.3,11.0468595]
[1693678106441,11.83742093,1633.5,1633.3,11.0468595]
[1693678109237,2.3922314,1633.4,1633.3,11.0468595]
[1693678109439,2.69846487,1633.4,1633.3,11.0468595]
[1693678110942,2.75966487,1633.4,1633.3,0.4926595]
[1693678111138,3.55707533,1633.4,1633.3,0.4926595]
[1693678111446,4.3544858,1633.4,1633.3,0.4926595]
[1693678111642,3.56284526,1633.4,1633.3,0.4926595]
[1693678111840,9.07284526,1633.4,1633.3,0.48854587]
[1693678112141,0.0612,1633.3,1633.1,5.51]
[1693678112344,6.92269302,1633.2,1633.1,5.51]
[1693678112546,0.0612,1633.1,1633.0,0.48654838]
[1693678112746,0.0612,1633.0,1632.9,5.51]
[1693678112944,2.92836352,1633.0,1632.9,5.5712]
[1693678114939,2.92836352,1633.0,1632.9,6.05501028]
[1693678115642,2.92836352,1633.0,1632.9,5.99381028]
[1693678116542,2.92836352,1633.0,1632.9,0.48381028]
[1693678116743,2.92836352,1633.0,1632.9,0.00414454]
[1693678121945,2.92836352,1633.0,1632.9,5.51414454]
[1693678125746,2.92836352,1633.0,1632.9,5.51]
[1693678127554,0.0612,1632.8,1632.7,6.99767717]
[1693678127745,5.1983,1632.8,1632.7,6.05800009]
[1693678128646,5.1983,1632.8,1632.7,5.99680009]
[1693678128848,10.7083,1632.8,1632.7,0.48680009]
[1693678129050,0.0612,1632.7,1632.6,5.89769226]
[1693678129460,0.0612,1632.6,1632.4,5.51]
[1693678129653,5.1371,1632.5,1632.4,8.1365]
[1693678129851,5.1371,1632.5,1632.4,10.6995]
[1693678130151,5.1371,1632.5,1632.4,5.1895]
[1693678130351,10.7083,1632.5,1632.4,5.1895]